Cogmind - Beta 15 @@@ ROGUE MODE // 2025.10.04 @ 10:14:22 Player: Bikerider58 Result: Destroyed by NK-0LA with NK-0LA's Tesla Doomcannon Performance ------------- Evolutions (1) 500 Regions Visited (6) 1200 Robots Destroyed (76) 380 Value Destroyed (1491) 1491 Prototype IDs (12) 240 Alien Tech Used (0) 0 Bonus (77) 77 TOTAL SCORE: 3888 Bonus ------- High Alert Combat Kills 41 Follower Combat Kills 66 Friendly Fire -30 Cogmind --------- Core Integrity 0/400 Matter 125/300 Energy 310/310 System Corruption 6% Temperature Warm (169) Movement Walking (210) Ox1 Location -8/Mines Parts ------- > --- POWER (1) -------- Heavy Deuterium Engine > --- PROPULSION (2) --- Makeshift Leg Makeshift Leg > --- UTILITY (3) ------ High-capacity Storage Unit Improved Target Analyzer Advanced Weapon Cycler > --- WEAPON (3) ------- Light Assault Rifle 8R-AWN's Boregun 8R-AWN's Boregun > --- INVENTORY (20) --- Makeshift Power Source Reinforced Fission Core Makeshift Leg Makeshift Leg Makeshift Leg Advanced Myomer Leg Advanced Myomer Leg Experimental Heat Sink Cooling System Gravity Neutralizer Experimental Targeting Computer Experimental Core Analyzer Advanced Recalibrator AS-neutralizer No. 17b Autogun Improved Assault Rifle Mini Grenade Launcher Plasma Cutter Katana Peak State ------------ > --- POWER ------------ Heavy Deuterium Engine > --- PROPULSION ------- Makeshift Leg Makeshift Leg > --- UTILITY ---------- High-capacity Storage Unit Improved Target Analyzer Advanced Weapon Cycler > --- WEAPON ----------- Light Assault Rifle 8R-AWN's Boregun 8R-AWN's Boregun > --- INVENTORY -------- Makeshift Power Source Reinforced Fission Core Makeshift Leg Makeshift Leg Makeshift Leg Advanced Myomer Leg Advanced Myomer Leg Experimental Heat Sink Cooling System Gravity Neutralizer Experimental Targeting Computer Experimental Core Analyzer Advanced Recalibrator AS-neutralizer No. 17b Autogun Improved Assault Rifle Mini Grenade Launcher Plasma Cutter Katana [Rating: 57] Favorites ----------- Power Ion Engine Engine Ion Engine Power Core Light Nuclear Core Propulsion Light Treads Treads Light Treads Leg Makeshift Leg Wheel Compact Wheel Utility Huge Storage Unit Device Seismic Detector Storage Huge Storage Unit Processor Salvage Targeting Computer Protection Light Armor Plating Weapon Light Assault Rifle Energy Gun Improved EM Shotgun Ballistic Gun Light Assault Rifle Ballistic Cannon Light Cannon Launcher Grenade Launcher Slashing Weapon Katana Build | -11 -10 -10 -9 -9 -9 -8 ------- Run | Yrd Mat Min Mat Min Exi Min Slots Evolved 2 | . . . 2 . . . Power . | . . . . . . . Propulsion . | . . . . . . . Utility 1 | . . . 1 . . . Weapon 1 | . . . 1 . . . Parts Attached 68 | 7 1 3 26 5 25 1 Power 7 | 1 . 1 3 . 2 . Engine 6 | 1 . . 3 . 2 . Core 1 | . . 1 . . . . Reactor . | . . . . . . . Propulsion 15 | 2 . . 6 1 6 . Treads 9 | 2 . . 3 1 3 . Leg 3 | . . . . . 3 . Wheel 3 | . . . 3 . . . Hover . | . . . . . . . Flight . | . . . . . . . Utility 24 | 2 1 1 8 1 10 1 Device 11 | 1 . . 3 . 6 1 Storage 6 | 1 1 1 1 1 1 . Processor 3 | . . . 1 . 2 . Hackware . | . . . . . . . Protection 4 | . . . 3 . 1 . Artifact . | . . . . . . . Weapon 22 | 2 . 1 9 3 7 . Energy Gun 7 | 1 . . 5 1 . . Energy Cannon . | . . . . . . . Ballistic Gun 11 | 1 . . 2 2 6 . Ballistic Cannon 1 | . . . 1 . . . Launcher 2 | . . 1 . . 1 . Special Weapon . | . . . . . . . Impact Weapon . | . . . . . . . Slashing Weapon 1 | . . . 1 . . . Piercing Weapon . | . . . . . . . Special Melee Weapon . | . . . . . . . Unidentified Prototypes 9 | . . . 2 . 7 . Corrupted Parts 1 | . . . 1 . . . System Corruption 1 | . . . 1 . . . Parts Lost 19 | . . . 6 3 10 . Power 3 | . . . 2 . 1 . Propulsion 5 | . . . 1 . 4 . Utility 4 | . . . . 2 2 . Weapon 7 | . . . 3 1 3 . Highest Loss Streak 9 | . . . 3 3 9 . To Critical Strikes 6 | . . . . . 6 . Average Backups 18 | 1 3 9 22 24 21 19 Power 1 | . . . . 1 2 2 Propulsion 4 | . . 2 7 6 4 5 Utility 5 | . . 2 8 5 6 7 Weapon 6 | 1 2 4 6 10 8 4 Tool/Special . | . . . . . . . Unused Backups 27 | . . 1 4 . 13 9 Power 6 | . . . . . 4 2 Propulsion 6 | . . . . . 2 4 Utility 11 | . . 1 3 . 5 2 Weapon 3 | . . . 1 . 2 . Tool/Special 1 | . . . . . . 1 Average Slot Usage (%) 94 | . 100 100 97 94 88 100 Engine 9 | . 14 6 8 11 10 11 Core 1 | . . 7 1 . . . Treads 17 | . 28 28 8 18 15 . Leg 2 | . . . . . 5 22 Wheel 3 | . . . 12 3 1 . Device 8 | . 14 14 10 3 5 11 Storage 14 | . 14 14 11 16 16 11 Processor 3 | . . . 5 . 5 11 Protection 4 | . . . 6 11 5 . Energy Gun 8 | . 14 8 13 18 3 . Ballistic Gun 13 | . 14 14 6 4 18 33 Launcher 1 | . . 5 . . . . Slashing Weapon 2 | . . . 8 6 . . Peak Build Rating 57 | 7 7 10 19 20 43 57 Average Rating 17 | 4 7 8 16 17 22 41 On Entrance 14 | . 7 7 10 18 19 39 Naked Turns . | . . . . . . . Heaviest Build 104 | 12 17 89 98 99 104 60 Greatest Support 43 | 40 40 40 32 43 43 40 Greatest Overweight (x) 9 | . . 2 9 5 6 1 Average Overweight (x) 2 | . . . 5 3 2 1 Largest Inventory Capacity 25 | 8 10 25 25 25 25 20 Average Capacity 21 | 7 9 14 25 25 24 20 Most Carried 25 | 3 8 14 25 25 25 20 Average Carried 18 | 1 3 9 22 24 22 19 Final Capacity 25 | 8 10 25 25 25 20 20 Final Carried 25 | 1 8 14 25 25 20 19 Class Distribution -------------------- 34% | Mutant 28% | Scavenger-Mutant 15% | Scavenger-Gunner 12% | Scavenger-Tank 9% | Gunner Dominant Class ---------------- Mutant | -10/Materials Mutant | -10/Mines Scavenger-Mutant | -9/Materials Scavenger-Mutant | -9/Mines Scavenger-Gunner | -9/Exiles Scavenger-Gunner | -8/Mines Resources | -11 -10 -10 -9 -9 -9 -8 ----------- Run | Yrd Mat Min Mat Min Exi Min Matter Collected 2270 | 278 23 288 533 100 985 63 Remotely . | . . . . . . . Salvage Created 2432 | 96 122 33 1430 265 454 32 Parts 200 | 6 3 4 98 17 69 3 Haulers Intercepted 7 | . 1 . 6 . . . Recyclers Shooed . | . . . . . . . Parts Field Recycled . | . . . . . . . Retrieved Matter . | . . . . . . . Parts Self-Destructed . | . . . . . . . Prevented . | . . . . . . . Kills | -11 -10 -10 -9 -9 -9 -8 ------- Run | Yrd Mat Min Mat Min Exi Min Combat Hostiles Destroyed 50 | . 2 6 28 8 4 2 Melee 13 | . . . 8 5 . . Guns 17 | . 2 3 9 . 1 2 Cannons 5 | . . . 5 . . . AOE 15 | . . 3 6 3 3 . Classes Destroyed 14 | 2 2 3 4 1 2 . Worker 1 | . . . . 1 . . Builder 4 | . . 1 3 . . . Tunneler 3 | 2 . . . 1 . . Hauler 7 | . 1 . 6 . . . Recycler 1 | 1 . . . . . . Operator 2 | . . . 2 . . . Turret 1 | . . . . . 1 . Watcher 3 | . . . 3 . . . Swarmer 15 | . . 3 7 3 . 2 Grunt 22 | . 2 . 15 5 . . Duelist 1 | . . . 1 . . . Sentry 5 | . . . 5 . . . Zionite 8 | . . . . . 8 . Assembled 6 | . . 3 . . 3 . Best Kill Streak 5 | 2 2 4 5 5 3 2 Combat Bots Only 5 | . 1 3 5 5 3 2 Max Kills in Single Turn 2 | 1 1 2 2 2 2 1 Gunslinging . | . . . . . . . Exploded 2 | . . 2 2 2 2 . Melee 1 | . . . 1 1 . . Uniques/NPCs Destroyed 4 | . . . . . 4 . 8R-AWN (-9/Exiles) EX-DEC (-9/Exiles) EX-BIN (-9/Exiles) EX-HEX (-9/Exiles) Combat | -11 -10 -10 -9 -9 -9 -8 -------- Run | Yrd Mat Min Mat Min Exi Min Hostile Shots Fired 296 | . 17 10 106 32 94 37 Missed 76 | . 6 2 30 11 13 14 Hits 220 | . 11 8 76 21 81 23 Projectile 220 | . 11 8 76 21 81 23 Critical Strikes 32 | . . . 3 1 28 . Damage Taken 3450 | . 174 108 1089 266 1417 396 Core 445 | . 42 . 111 23 160 109 Absorbed by Shields . | . . . . . . . Regen/Repaired (Parts) 128 | . . . 128 . . . Core Remaining (%) 91 | 100 . 83 . . . . Volleys Fired 174 | 8 14 14 44 3 81 10 Largest 3 | 2 2 2 3 1 3 3 Hottest 100 | 70 70 70 100 30 69 80 Shots Fired 435 | 16 28 30 96 3 232 30 Gun 405 | 16 28 26 75 . 230 30 Cannon 15 | . . . 15 . . . Launcher 15 | . . 4 6 3 2 . Special . | . . . . . . . Kinetic 330 | 8 14 15 33 . 230 30 Thermal 51 | 8 14 11 18 . . . Explosive 15 | . . 4 6 3 2 . Electromagnetic 39 | . . . 39 . . . Robot Hit Streak 23 | 5 12 7 16 2 23 8 Robot Miss Streak 5 | 4 3 5 2 1 3 3 Penetration Max . | . . . . . . . Secondary Targets 1 | . . . 1 . . . Max Gunslinging Chain 1 | . . . 1 . . . Shots Hit Robots 349 | 8 20 11 106 17 166 21 Core Hits 150 | 5 9 11 60 12 48 5 Critical Kills 1 | . . . . . . 1 Critical Parts Destroyed 3 | . . . . . 1 2 Critical Strikes 10 | . . . 3 . 1 6 Burn 1 | . . . 1 . . . Destroy 7 | . . . . . 1 6 Sever 2 | . . . 2 . . . Melee Attacks 66 | . . . 45 21 . . Impact . | . . . . . . . Slashing 66 | . . . 45 21 . . Piercing . | . . . . . . . Sneak Attacks 10 | . . . 9 1 . . Combat Hostiles . | . . . . . . . Follow-up Attacks . | . . . . . . . Damage Inflicted 7298 | 90 238 325 3300 736 2322 287 Guns 3850 | 90 232 111 907 . 2223 287 Cannons 195 | . . . 195 . . . Explosions 1302 | . . 213 775 215 99 . Melee 1944 | . . . 1423 521 . . Ramming 7 | . 6 1 . . . . Kinetic 2986 | 27 80 61 308 . 2223 287 Thermal 879 | 63 152 50 614 . . . Explosive 880 | . . 213 353 215 99 . Electromagnetic 602 | . . . 602 . . . Impact . | . . . . . . . Slashing 1944 | . . . 1423 521 . . Piercing . | . . . . . . . Highest Corruption 5 | . 2 2 1 1 5 5 Average Corruption 1 | . 2 2 1 1 1 2 Corruption Purged 5 | . . . . . 5 . Corruption Blocked . | . . . . . . . Effects 54 | . 5 19 1 6 23 . Message Errors 17 | . 1 7 . 1 8 . Matter Fused 16 | . 2 5 . 2 7 . Heat Flow Errors 3 | . . 2 1 . . . Energy Discharges 2 | . . 1 . . 1 . Data Loss (minor) 3 | . 1 1 . 1 . . Data Loss (major) 7 | . 1 1 . 2 3 . Misfires 3 | . . 2 . . 1 . Alerts 1 | . . . . . 1 . Weapon Failures 2 | . . . . . 2 . Overload Shots . | . . . . . . . Overflow Damage 169 | . . 20 143 6 . . Projectiles . | . . . . . . . Explosions 111 | . . 20 91 . . . Melee 58 | . . . 52 6 . . Knockbacks 1 | . . . 1 . . . Impact . | . . . . . . . Kinetic 1 | . . . 1 . . . Secondary . | . . . . . . . Self-Inflicted Damage 145 | . . 33 112 . . . Shots 5 | . . 2 3 . . . Rammed 3 | . 2 1 . . . . Targets Rammed 3 | . 2 1 . . . . Kicked . | . . . . . . . Crushed . | . . . . . . . Highest Temperature 242 | 130 242 240 171 9 32 169 Average Temperature 59 | 61 121 49 44 9 11 95 Received Heat Transfer 762 | . 99 . 474 171 18 . Siege Activations . | . . . . . . . Martial Activations . | . . . . . . . Shielding Activations . | . . . . . . . Robots Disrupted . | . . . . . . . Combat Hostiles . | . . . . . . . Robots Corrupted . | . . . . . . . Combat Hostiles . | . . . . . . . Parts Fried 3 | . . . 3 . . . Impact Corruptions . | . . . . . . . Robots Melted . | . . . . . . . Combat Hostiles . | . . . . . . . Parts Melted 1 | 1 . . . . . . Heat Transferred 1769 | 185 444 148 992 . . . Parts Sabotaged . | . . . . . . . Parts Stolen . | . . . . . . . Parts Stripped . | . . . . . . . Power Chain Reactions 2 | . . . 2 . . . Alert | -11 -10 -10 -9 -9 -9 -8 ------- Run | Yrd Mat Min Mat Min Exi Min Maximum Alert Level 2 | . . . 2 . . . Low Security (%) 72 | 100 100 100 26 100 . 100 Level 1 19 | . . . 50 . . . Level 2 8 | . . . 23 . . . Level 3 . | . . . . . . . Level 4 . | . . . . . . . Level 5 . | . . . . . . . High Security . | . . . . . . . Max Security . | . . . . . . . Peak Influence 448 | 10 37 87 448 171 . 65 Initial 171 | . . . . 171 . . Average 118 | 1 5 10 250 118 . 13 Influence Increases 1536 | 15 62 103 1084 205 . 67 Destroy 0b10 Robot/C 900 | . 40 60 600 160 . 40 Destroy 0b10 Robot/NC 110 | 15 5 5 75 10 . . Destroy Leader 230 | . 12 10 168 30 . 10 Allied During Kill 31 | . . . 31 . . . Successful Hack 57 | . 5 . 52 . . . Select Force Hacks 30 | . . . 30 . . . Disable Machine 45 | . . . 45 . . . Destroy Structure 103 | . . 28 68 5 . 2 Lose Combat Pursuer 30 | . . . 15 . . 15 Influence Decreases 1499 | 15 62 103 644 601 44 30 Entered New Map 313 | . . . . 269 44 . Time Decay 1026 | 15 62 103 534 302 . 10 Lost Part 90 | . . . 60 30 . . Lost Ally 70 | . . . 50 . . 20 Squads Dispatched 4 | . . . 4 . . . Investigation 1 | . . . 1 . . . Extermination . | . . . . . . . Reinforcement 3 | . . . 3 . . . Assault . | . . . . . . . Garrison . | . . . . . . . Intercept . | . . . . . . . Searches Triggered . | . . . . . . . Construction Impeded . | . . . . . . . Haulers Reinforced . | . . . . . . . Active Scanning Responses . | . . . . . . . Cargo Convoy Interrupts . | . . . . . . . Stealth | -11 -10 -10 -9 -9 -9 -8 --------- Run | Yrd Mat Min Mat Min Exi Min Distress Signals 4 | . . 1 3 . . . Communications Jammed . | . . . . . . . Distress Signals . | . . . . . . . Times Spotted 89 | . 2 7 44 8 23 5 Peak Tracking Total 9 | . 2 2 5 5 9 4 Tactical Retreats 12 | . . 2 1 . 8 1 Traps | -11 -10 -10 -9 -9 -9 -8 ------- Run | Yrd Mat Min Mat Min Exi Min Traps Triggered 2 | . 1 . 1 . . . Indirectly . | . . . . . . . Trap Hack Attempts . | . . . . . . . Triggered . | . . . . . . . Disarmed . | . . . . . . . Reprogrammed . | . . . . . . . Reused . | . . . . . . . Traps Extracted . | . . . . . . . Installed . | . . . . . . . Triggered . | . . . . . . . Machines | -11 -10 -10 -9 -9 -9 -8 ---------- Run | Yrd Mat Min Mat Min Exi Min Machines Disabled 14 | . . . 3 . 11 . Max in Single Turn 2 | . . . 2 . 1 . Machines Repaired . | . . . . . . . Machines Dismantled . | . . . . . . . Machines Sabotaged . | . . . . . . . Overloaded Fab Kills . | . . . . . . . Hacking | -11 -10 -10 -9 -9 -9 -8 --------- Run | Yrd Mat Min Mat Min Exi Min Machines Accessed 12 | . 3 . 8 . 1 . Terminals 8 | . 3 . 5 . . . Fabricators . | . . . . . . . Repair Stations 2 | . . . 2 . . . Recycling Units 1 | . . . 1 . . . Scanalyzers . | . . . . . . . Garrison Access . | . . . . . . . Total Hacks 39 | . 9 . 29 . 1 . Successful 21 | . 3 . 17 . 1 . Failed 17 | . 6 . 11 . . . Catastrophic 1 | . 1 . . . . . Database Lockouts 1 | . . . 1 . . . Manual 24 | . 9 . 15 . . . Terminals 33 | . 9 . 24 . . . Fabricators . | . . . . . . . Repair Stations 4 | . . . 4 . . . Recycling Units 1 | . . . 1 . . . Scanalyzers . | . . . . . . . Garrison Access . | . . . . . . . Terminal Hacks 10 | . 2 . 7 . 1 . Record 1 | . . . . . 1 . Robot Analysis 3 | . 2 . 1 . . . Prototype ID Bank 2 | . . . 2 . . . Branch Access Points 1 | . . . 1 . . . Hauler Manifests 1 | . . . 1 . . . Registered Components 1 | . . . 1 . . . Zone Layout 1 | . . . 1 . . . Fabricator Hacks . | . . . . . . . Repair Station Hacks 4 | . . . 4 . . . Scan Component 2 | . . . 2 . . . Repair 2 | . . . 2 . . . Recycling Unit Hacks . | . . . . . . . Scanalyzer . | . . . . . . . Garrison Access Hacks . | . . . . . . . Unauthorized Hacks 7 | . 1 . 6 . . . Terminals 6 | . 1 . 5 . . . Assimilate 1 | . . . 1 . . . Botnet 3 | . 1 . 2 . . . Operators 1 | . . . 1 . . . Skim 1 | . . . 1 . . . Fabricators . | . . . . . . . Repair Stations . | . . . . . . . Recycling Units 1 | . . . 1 . . . Tunnel 1 | . . . 1 . . . Scanalyzers . | . . . . . . . Garrison Access . | . . . . . . . Data Cores Recovered 1 | . . . 1 . . . Used . | . . . . . . . Hacking Detections 8 | . 3 . 5 . . . Full Trace Events 1 | . 1 . . . . . Feedback Events . | . . . . . . . Feedback Blocked . | . . . . . . . Robot Schematics Acquired . | . . . . . . . Robots Built . | . . . . . . . Authchips . | . . . . . . . Time . | . . . . . . . Total Robot Build Rating . | . . . . . . . Part Schematics Acquired . | . . . . . . . Parts Built . | . . . . . . . Authchips . | . . . . . . . Time . | . . . . . . . Total Part Build Rating . | . . . . . . . Parts Repaired 2 | . . . 2 . . . Time 39 | . . . 39 . . . Parts Recycled . | . . . . . . . Recycled Matter . | . . . . . . . Retrieved Matter . | . . . . . . . Retrieved Components . | . . . . . . . Parts Scanalyzed . | . . . . . . . Part Schematics Acquired . | . . . . . . . Parts Damaged . | . . . . . . . Bothacking | -11 -10 -10 -9 -9 -9 -8 ------------ Run | Yrd Mat Min Mat Min Exi Min Used RIF Installer . | . . . . . . . Robots Hacked . | . . . . . . . Non-combat . | . . . . . . . Combat . | . . . . . . . Robot Hacks Applied . | . . . . . . . Relay Couplers Released . | . . . . . . . Fabnet Peak Effective % . | . . . . . . . Robots Rewired . | . . . . . . . Allies Hacked . | . . . . . . . Hacks Repelled . | . . . . . . . Allies | -11 -10 -10 -9 -9 -9 -8 -------- Run | Yrd Mat Min Mat Min Exi Min Total Allies 3 | . . 2 1 . . . Largest Group 3 | . . 2 3 . . . Highest-Rated Group 55 | . . 45 55 . . . Highest-Rated Ally 31 | . . 31 31 . . . Total Orders . | . . . . . . . Ally Attacks 21 | . . 4 15 . . 2 Total Damage 355 | . . 41 210 . . 104 Kills 3 | . . . 3 . . . Allies Corrupted 1 | . . . . . . 1 Allies Melted . | . . . . . . . Turrets Deployed 1 | . . . . . . 1 Intel | -11 -10 -10 -9 -9 -9 -8 ------- Run | Yrd Mat Min Mat Min Exi Min Active Infowar (turns) 3205 | 27 429 1208 1358 183 . . Seismic 2628 | 27 429 1208 781 183 . . T.N.C. 730 | . . . 730 . . . Robot Analysis Total 3 | . 2 . 1 . . . Derelict Logs Recovered 1 | . . 1 . . . . Drone Launches . | . . . . . . . Drone Recoveries . | . . . . . . . Exploration | -11 -10 -10 -9 -9 -9 -8 ------------- Run | Yrd Mat Min Mat Min Exi Min Turns Passed 6874 | 113 429 1208 1526 663 2839 96 Spaces Moved 2382 | 48 227 327 621 227 901 31 Core 1 | 1 . . . . . . Treads 1198 | 47 227 327 1 135 461 . Legs 270 | . . . . . 239 31 Wheels 913 | . . . 620 92 201 . Hover . | . . . . . . . Flight . | . . . . . . . Fastest Speed 50 | 50 160 160 130 175 175 210 Average Speed 222 | 157 160 207 176 261 268 210 Slowest Speed 480 | 160 160 320 480 320 480 210 Overloaded Moves . | . . . . . . . Propulsion Burnouts . | . . . . . . . Robots Hopped . | . . . . . . . Potential Cave-ins . | . . . . . . . Cave-ins Triggered . | . . . . . . . Exploration Rate (%) 45 | 5 43 55 71 57 76 11 Regions Visited 6 Branch Regions 4 Pre-discovered Areas 3 | . . 1 1 . 1 . Known Exits Taken 1 | . . . 1 . . . Unknown Exits Taken 5 | 1 1 1 . 1 1 . Scrap Searched 3 | . . 2 . 1 . . Spaces Dug 7 | . . . 7 . . . Terrain Destroyed 123 | . . 30 70 7 11 5 Melee 7 | . . . 7 . . . Projectile 5 | . . . . . . 5 AOE 111 | . . 30 63 7 11 . Terrain Rammed . | . . . . . . . Walls Destroyed . | . . . . . . . Machines Disabled . | . . . . . . . Actions | -11 -10 -10 -9 -9 -9 -8 --------- Run | Yrd Mat Min Mat Min Exi Min Total 3549 | 69 267 831 899 264 1174 45 Wait 688 | 4 16 474 96 3 95 . Move 2376 | 47 226 326 620 226 900 31 Hop . | . . . . . . . Pick Up 74 | 3 7 8 30 3 23 . Fast Attach 28 | 5 . . 11 . 12 . Attach 28 | 2 . . 9 3 14 . Detach 10 | . . . 1 . 9 . Swap 44 | . 1 4 21 4 11 3 Drop 58 | . 1 4 22 1 29 1 Fire 174 | 8 14 14 44 3 81 10 Melee 66 | . . . 45 21 . . Ram . | . . . . . . . Kick . | . . . . . . . Crush 3 | . 2 1 . . . . Escape Stasis . | . . . . . . . Rewire . | . . . . . . . Trap . | . . . . . . . Miscellaneous . | . . . . . . . Route ------- -11/Scrapyard -10/Materials (discovered 2 exits: *Mat / [*Min]) -10/Mines -9/Materials (discovered 3 exits: [*Mat] / *Min x2) -9/Mines (discovered 2 exits: [*Mat] / *Exi) -9/Exiles -8/Mines History --------- Turn | Location | Event 63 | -11/Scrapyard | Discovered new exit (range 16) 114 | -11/Scrapyard | Entered Materials 172 | -10/Materials | Discovered new exit (range 15) 303 | -10/Materials | Build established: Mutant 355 | -10/Materials | Discovered new exit (range 4) 543 | -10/Materials | Entered Mines 544 | -10/Mines | Assembled infested the area 544 | -10/Mines | Learned location of Storage (-7) 1236 | -10/Mines | Discovered new exit (range 13) 1751 | -10/Mines | Entered Materials 1751 | -9/Materials | Accompanied by 2 allies 1751 | -9/Materials | Evolved 2 slots: Utility x1, Weapon x1 1752 | -9/Materials | Identified exit to Mines 1756 | -9/Materials | Led the pair of lost Derelicts to an unsafe place 1821 | -9/Materials | Central database locked down 1945 | -9/Materials | Discovered new exit (range 8) 2042 | -9/Materials | Build established: Scavenger-Gunner 2056 | -9/Materials | Lost 3 parts (1p1n1w) 2380 | -9/Materials | Build established: Scavenger-Mutant 2595 | -9/Materials | Repaired Lgt. Armor Plating 3069 | -9/Materials | Repaired Lgt. Armor Plating 3277 | -9/Materials | Entered Mines 3329 | -9/Mines | Met a Derelict bent on vengeance 3395 | -9/Mines | Discovered new exit (range 15) 3495 | -9/Mines | Lost 3 parts (2u1w) 3692 | -9/Mines | Joined a pair of Derelicts in attacking an 0b10 outpost 3927 | -9/Mines | Deemed a non-threat by the Exiles lab entrance 3927 | -9/Mines | Discovered new exit (range 5) 3940 | -9/Mines | Entered Exiles 3973 | -9/Exiles | Build established: Scavenger-Tank 4020 | -9/Exiles | Met 8R-AWN 4075 | -9/Exiles | Met EX-HEX 4187 | -9/Exiles | Met EX-DEC 4248 | -9/Exiles | Learned location of Zion (-6) 4337 | -9/Exiles | Discovered new exit (range 14) 4684 | -9/Exiles | Build established: Mutant 5215 | -9/Exiles | Build established: Scavenger-Mutant 5252 | -9/Exiles | Attacked by the Exiles 5385 | -9/Exiles | Core integrity fell below 50% 5440 | -9/Exiles | Destroyed 8R-AWN 5454 | -9/Exiles | Found Prototype Ballistic Gun 5454 | -9/Exiles | Identified 8R-AWN's Boregun 5459 | -9/Exiles | Found 8R-AWN's Boregun 5463 | -9/Exiles | Found Prototype Device 5463 | -9/Exiles | Identified AS-neutralizer No. 17b 5468 | -9/Exiles | Lost 9 parts (1p3n2u3w) 5503 | -9/Exiles | Found Prototype Protection 5511 | -9/Exiles | Found Prototype Processor 5817 | -9/Exiles | Build established: Gunner 5967 | -9/Exiles | Destroyed EX-DEC 5981 | -9/Exiles | Destroyed EX-BIN 6054 | -9/Exiles | Destroyed EX-HEX 6132 | -9/Exiles | Found Deploy-a-Sentry 6187 | -9/Exiles | Found Prototype Device 6187 | -9/Exiles | Identified System Purifier 6289 | -9/Exiles | Found Prototype Processor 6413 | -9/Exiles | Build established: Scavenger-Gunner 6779 | -9/Exiles | Left Exiles lab with Deploy-a-Sentry 6779 | -9/Exiles | Entered Mines 6856 | -8/Mines | NK-0LA came to Exiles' defense 6858 | -8/Mines | DAS Turret deployed 6866 | -8/Mines | Core integrity fell below 20% 6875 | -8/Mines | Destroyed by NK-0LA with NK-0LA's Tesla Doomcannon Last Messages --------------- 06864_ HV Slug penetrates NK-0LA. 06864_ NK-0LA suffers critical hit (Destroy). 06864_ HV Slug penetrates Wall. 06864_ HV Slug penetrates NK-0LA. 06864_ NK-0LA suffers critical hit (Destroy). 06866_ HV Slug penetrates NK-0LA. 06866_ HV Slug penetrates Wall. 06866_ HV Slug penetrates NK-0LA. 06866_ Destroyed Reflective Plating. 06866_ HV Slug penetrates Wall. 06868_ HV Slug penetrates NK-0LA. 06868_ NK-0LA suffers critical hit (Destroy). 06868_ HV Slug penetrates Wall. 06871_ HV Slug penetrates Earth. 06873_ HV Slug penetrates NK-0LA. 06873_ NK-0LA suffers critical hit (Destroy). 06873_ Destroyed Prototype Reactor. 06873_ HV Slug penetrates Wall. 06873_ HV Slug penetrates NK-0LA. 06873_ HV Slug penetrates Wall. Map ----- +----------------------------------------------------+ | ?????????????????????????????????????????????? | | ?????????????????????????????????????????????? | | ?????????????????????????????????????????????? | | ?????????????????????????????????????????????? | | ?????????????????????????????????????????????? | | ?????????????????????????????????????????????? | | ?????????????????????????????????????????????? | | ?????????????????????????????????????????????? | | ?????????????????????????????????????????????? | | ?????????????????????????????????????????????? | | ?????????????????????????????????????????????? | | ?????????????????????????????????????????????? | | ????????????????????????##???????????????????? | | ???????????????????????? ;#??????????????????? | | ???????????????????????? ##?????????????????? | | ???????????????????????? ?????????????????? | | ???????????????????????? ?????????????????? | | ????????????????????????# #?????????????????? | | ????????????????????????# #?????????????????? | | ????????????????##??????# #?????????????????? | | ????????????????? ##???# #?##??????????????? | | ??????????????????? ??# %## #??????????????? | | ????????????????????? ## # #???????????????? | | ??????????????????????? s[*;#??####??????????? | | ????????????????????????#x%#???# ###????????? | | ????????????????????????#@[#???# ##???????? | | ????????????????????????# ##### #???????? | | ????????????????????????# #???????? | | ????????????????????????# ##??????? | | ????????????????????????###### #??????? | | ?????????????????????????????# """ #??????? | | ????????????????????????????## """ #??????? | | ????????????????????????????# """ #??????? | | ????????????????????????????# ##??????? | | ????????????????????????????## # ###???????? | | ?????????????????????????????#### #?????????? | | ????????????????????????????????# #?????????? | | ????????????????????????????????# #?????????? | | ????????????????????????????????# #?????????? | | ????????????????????????????????# #?????????? | | ???????????????????????????????## #?????????? | | ??????????????????????????????## ##????????? | | ??????????????????# ########### #????????? | | ??????????????????# #????????? | | ??????????????????# #????????? | | ??????????????????####### ##????????? | | ????????????????????????## ####?????????? | | ?????????????????????????########????????????? | | ?????????????????????????????????????????????? | | | +----------------------------------------------------+ Best States ------------- Heat Dissipation 54 Energy Generation 18 Energy Capacity 310 Matter Stores 400 Matter Capacity 400 Sight Range 16 Terrain Scan Density 10 Armor Coverage 300 Weapon Cycling 25 Evasion (%) 40 Target Analysis 6 Recoil Reduction 2 Salvage Targeting 1 Item Schematics ----------------- None Robot Schematics ------------------ None Fabricated ------------ Nothing Repaired ---------- Lgt. Armor Plating | 35% | -9/Materials Lgt. Armor Plating | 22% | -9/Materials Alien Tech Used ----------------- None Achievements -------------- None Challenges ------------ None Game ------ Seed DirtyEfficiencyMachine Manual? 0 Play Time 00:58:16 Cumulative 109.3 hours Start 2025.10.03 @ 22:49:51 End 2025.10.04 @ 10:14:22 Sessions 5 Manual Loads 0 Difficulty Rogue Special Mode None Game No. 59 Rogue 54 Adventurer 5 Explorer 0 Win Type - Total 2 Types 2/0/0/0/0/0/0/0/0/0 Lore% 52 Gallery% 56 Achievement% 51 Wizard Run 0 Options --------- Layout 1 ASCII 0 Keyboard 0 Movement Numpad Keybinds 0 Fullscreen 1 Font 24/Smallcaps Map View 50x35 Zoom Use 0% Tactical HUD 1 Map Filters NONE Filters NONE Steam 1 RUN: 7d0b9e9e-873b-4d39-b4f3-580f074ce12f